bitfinex/quotes_ETHUSD_20241223
["timestamp","ask_amount","ask_price","bid_price","bid_amount"]
[1734960026404,0.15978604,3341.1,3340.4,1.279594]
[1734960026718,0.8162,3341.5,3340.5,8.98]
[1734960026902,0.8162,3341.5,3340.6,2.99339]
[1734960027221,0.1596683,3341.4,3340.6,2.99339]
[1734960027426,0.1596683,3341.4,3340.7,1.3252984]
[1734960027730,0.1596683,3341.3,3340.9,2.9932]
[1734960028387,0.1596683,3341.2,3341.0,2.99311]
[1734960028776,0.8162,3341.5,3341.0,2.99311]
[1734960028981,0.7622,3341.9,3340.8,0.78582673]
[1734960029181,0.7622,3341.9,3341.1,2.99301]
[1734960029479,0.7622,3341.9,3340.9,3.72218847]
[1734960029799,0.15959286,3341.8,3340.9,3.75211399]
[1734960030001,0.15959286,3341.8,3341.0,2.99307]
[1734960030201,0.15959286,3341.7,3341.0,2.99307]
[1734960030417,0.15959286,3341.7,3341.1,4.33879585]
[1734960030819,0.7622,3341.9,3341.1,1.34579585]
[1734960031001,0.7622,3341.9,3340.9,0.72898847]
[1734960031196,0.7742,3341.4,3340.1,9.7698]
[1734960031412,0.7742,3341.4,3340.3,2.99371]
[1734960031623,0.15939406,3341.3,3340.4,2.99365]
[1734960032432,0.15939406,3341.3,3340.1,0.7898]
[1734960032433,0.15939406,3341.2,3340.5,0.0607319]
[1734960032733,0.7707,3341.1,3340.5,0.0607319]
[1734960032914,0.93009406,3341.1,3340.5,2.99355]
[1734960033120,0.93009406,3341.1,3340.6,0.3587353]
[1734960033617,0.7707,3341.1,3340.6,0.3587353]
[1734960033936,0.7707,3341.1,3340.6,3.3521653]
[1734960034231,0.7707,3341.1,3340.8,2.99328]
[1734960034439,0.7707,3341.1,3340.9,0.33520153]
[1734960034588,0.7707,3341.1,3340.9,0.39465288]
[1734960035132,2.9924,3341.8,3340.9,0.39465288]
[1734960035329,0.8057,3341.7,3340.9,0.39465288]
[1734960035544,0.8057,3341.7,3340.9,0.33520153]
[1734960035692,0.96507503,3341.7,3341.0,0.33284815]
[1734960036037,0.96507503,3341.7,3340.9,2.99317]
[1734960036402,0.15937503,3341.6,3341.0,0.05943388]
[1734960036603,0.15937503,3341.6,3340.8,2.99329]
[1734960036808,0.15937503,3341.6,3340.9,0.08937788]
[1734960037004,0.8057,3341.7,3340.9,0.08937788]
[1734960037208,0.8057,3341.7,3341.1,2.99297]
[1734960037425,0.8057,3341.7,3341.2,0.30524213]
[1734960037744,0.8057,3341.7,3341.2,0.36452997]
[1734960039354,0.8057,3341.7,3341.2,0.05928784]
[1734960039760,0.8057,3341.7,3340.9,8.98]
[1734960040451,0.8057,3341.7,3341.0,0.05922401]
[1734960040962,0.8057,3341.7,3340.7,2.99338]
[1734960041139,0.8057,3341.7,3340.6,9.279355]
[1734960041341,0.7865,3341.2,3340.2,8.98]
[1734960041539,0.7865,3341.2,3340.7,0.05927641]
[1734960041723,2.99337,3340.8,3340.2,8.98]
[1734960041928,0.7865,3340.7,3340.2,8.98]
[1734960043247,0.7865,3340.7,3339.6,8.98]
[1734960043562,3.76274,3340.3,3339.6,1.275991]
[1734960043766,2.99385,3340.2,3339.6,1.275991]
[1734960043961,2.99385,3340.2,3339.7,0.05794769]
[1734960044262,2.99392,3340.1,3339.1,3.8268]
[1734960044411,3.76292,3340.1,3339.8,0.05793021]
[1734960044752,3.76292,3340.1,3339.1,2.9948]
[1734960044975,3.76292,3340.1,3339.2,0.35865614]
[1734960045176,3.76292,3340.1,3339.2,0.41680229]
[1734960045562,0.769,3340.1,3339.2,0.41680229]
[1734960046051,3.76295,3340.1,3339.2,0.41680229]
[1734960047151,0.769,3340.1,3339.2,3.41145229]
[1734960047361,0.769,3340.1,3339.3,0.40032137]
[1734960047571,0.769,3340.1,3339.4,0.05811118]
[1734960048471,0.769,3340.1,3339.4,3.08257239]
[1734960048669,0.769,3340.1,3339.4,3.05263118]
[1734960049784,0.769,3340.1,3339.4,0.05811118]
[1734960050089,0.769,3340.1,3339.5,1.28379012]
[1734960050567,0.769,3340.1,3339.6,0.05807622]
[1734960051383,0.8102,3340.0,3339.6,0.05807622]
[1734960052354,1.86739155,3341.0,3339.9,2.99404]
[1734960052355,3.8034,3340.9,3339.9,2.99404]
[1734960052559,1.86739155,3340.8,3340.0,3.51492195]
[1734960052773,1.86739155,3340.8,3340.0,0.58010429]
[1734960052989,2.02691954,3340.8,3340.0,0.58010429]
[1734960053629,0.15952799,3340.7,3340.0,0.58010429]
[1734960053782,0.15952799,3340.7,3340.1,0.35742543]
[1734960053999,0.15952799,3340.7,3340.2,0.05910036]
[1734960054191,0.15952799,3340.8,3340.2,0.05910036]
[1734960054577,3.80347,3340.9,3340.2,0.05910036]
[1734960054769,0.15960212,3340.7,3340.2,0.05910036]
[1734960055302,3.80347,3340.9,3340.2,0.40015994]
[1734960055889,0.15960599,3340.8,3340.2,0.40015994]
[1734960056725,0.15960599,3340.7,3340.2,0.40015994]
[1734960057330,3.80347,3340.9,3340.2,0.40015994]
[1734960057612,0.8102,3340.9,3340.2,0.40015994]
[1734960057781,0.15962463,3340.8,3340.2,0.05910036]
[1734960057983,0.15962463,3340.8,3339.8,8.98]
[1734960058179,0.15962463,3340.8,3339.9,2.99408]
[1734960058378,0.15962463,3340.7,3339.9,3.05323279]
[1734960058966,0.8102,3340.9,3339.9,3.05323279]
[1734960059309,0.8102,3340.9,3340.0,1.42185724]
[1734960059477,0.15964387,3340.8,3340.0,1.42185724]
[1734960059810,0.7681,3340.7,3340.1,0.05911783]
[1734960060030,3.76151,3340.7,3340.1,0.05911783]
[1734960060229,0.15964387,3340.6,3340.1,0.05911783]
[1734960061202,0.15964387,3340.6,3340.1,1.10521534]
[1734960061616,0.15964387,3340.6,3340.1,0.05911783]
[1734960061813,0.15964387,3340.6,3340.0,2.99393]
[1734960062139,0.15964387,3340.6,3340.1,0.05911783]
[1734960062640,0.15964387,3340.6,3340.2,0.05910036]
[1734960063103,0.15964387,3340.6,3339.8,2.99417]
[1734960063307,0.15964387,3340.6,3340.3,0.05877435]
[1734960063662,0.15964387,3340.6,3340.4,0.05875688]
[1734960064036,0.15964387,3340.6,3339.9,1.33849037]
[1734960064327,0.15964387,3340.6,3340.5,0.0587394]
[1734960064486,0.15964387,3340.6,3339.9,1.33849037]
[1734960064692,0.15964387,3340.6,3340.5,0.0587394]
[1734960065205,0.15964387,3340.6,3340.0,1.33126604]
[1734960065414,0.15964387,3340.6,3340.1,0.0588093]
[1734960065918,3.15312387,3340.6,3340.1,0.0588093]
[1734960066531,2.99378,3340.3,3339.7,8.98]
[1734960066833,0.7794,3340.4,3339.8,0.898]
[1734960066999,0.7794,3340.4,3339.9,0.05884425]
[1734960067207,0.15964387,3340.5,3340.0,2.99397]
[1734960067391,0.15964387,3340.3,3340.0,2.99397]
[1734960067734,0.7794,3340.7,3340.1,1.43011073]
[1734960068440,0.16013312,3340.6,3340.1,1.43011073]
[1734960069130,0.16013312,3340.5,3340.1,1.43011073]
[1734960069639,0.16013312,3340.4,3340.2,0.02993437]
[1734960069795,0.16013312,3340.4,3340.3,2.99374]
[1734960069995,0.7562,3341.0,3340.3,1.02208082]
[1734960070221,0.7562,3341.0,3340.4,2.99364]
[1734960070437,0.7562,3341.0,3340.5,0.0587394]
[1734960070932,0.16013312,3340.9,3340.5,0.0587394]
[1734960071522,0.16013312,3340.9,3340.3,0.96330647]
[1734960071846,0.16013312,3340.8,3340.4,1.13146079]
[1734960072052,0.16013312,3340.8,3340.4,0.05875688]
[1734960072235,0.95133312,3340.7,3340.4,0.05875688]
[1734960072452,0.95133312,3340.7,3340.2,8.98]
[1734960072813,0.16013312,3340.6,3340.3,0.05877435]
[1734960073559,0.16013312,3340.5,3340.3,0.05877435]
[1734960073910,0.16013312,3340.5,3339.8,11.97413]
[1734960074259,0.7912,3340.7,3339.9,1.33859191]
[1734960074449,0.7912,3340.7,3339.9,1.39689936]
[1734960074652,3.7846,3340.7,3339.9,1.39689936]
[1734960074972,0.16024773,3340.6,3339.9,4.39096936]
[1734960075127,0.16024773,3340.6,3340.0,0.02993503]
[1734960075311,0.16024773,3340.5,3340.4,2.99365]
[1734960075812,0.16024773,3340.5,3340.4,0.05822007]
[1734960076036,0.7694,3341.0,3340.4,0.05822007]
[1734960076037,0.16024773,3340.9,3340.4,0.05822007]
[1734960076256,0.16024773,3340.9,3340.5,0.0582026]
[1734960076757,0.16024773,3340.8,3340.3,11.97372]
[1734960076952,0.16024773,3340.8,3340.6,0.05818513]
[1734960077140,0.16024773,3340.8,3340.4,1.38308034]
[1734960077679,0.16024773,3340.8,3340.5,0.0582026]
[1734960077971,0.16024773,3340.7,3340.5,0.0582026]
[1734960078327,0.7694,3341.0,3340.5,0.0582026]
[1734960078530,0.7694,3341.0,3340.5,1.39970289]
[1734960078830,0.16029611,3340.9,3340.5,1.39970289]
[1734960079256,0.16029611,3340.9,3340.5,0.0582026]
[1734960079439,0.8257,3340.7,3339.9,2.99408]
[1734960079645,0.8257,3340.7,3340.0,0.05828997]
[1734960080153,0.16029611,3340.6,3340.0,0.05828997]
[1734960080362,0.16029611,3340.6,3340.1,1.281647]
[1734960080558,0.16029611,3340.6,3340.1,4.275557]
[1734960080732,0.16029611,3340.5,3340.2,0.05825502]
[1734960081273,0.8257,3340.7,3340.2,0.05825502]
[1734960081475,0.8257,3341.1,3340.2,0.05825502]
[1734960081680,0.16038105,3340.6,3340.3,2.99372]
[1734960081991,0.16038105,3340.6,3340.4,0.4333622]
[1734960082133,1.86739155,3341.3,3340.8,2.99327]
[1734960082550,1.86739155,3341.3,3340.9,0.05821292]
[1734960082972,0.16040389,3341.2,3340.4,9.7622]
[1734960083174,0.16040389,3341.2,3341.0,0.05819545]
[1734960083467,0.16040389,3341.2,3341.1,0.05817799]
[1734960083667,0.7762,3341.5,3341.1,0.05817799]
[1734960083891,0.7762,3341.5,3340.6,2.99345]
[1734960084178,0.7762,3341.5,3341.2,0.05816052]
[1734960084377,0.7762,3341.5,3340.7,4.268875]
[1734960084378,0.16032936,3341.4,3340.7,4.268875]
[1734960084536,0.16032936,3341.4,3341.3,0.05814306]
[1734960084735,0.16032936,3341.4,3341.1,2.99293]
[1734960084961,0.16032936,3341.3,3341.2,0.377113]
[1734960085774,0.8035,3341.8,3341.2,0.377113]
[1734960086132,2.99266,3341.6,3340.8,8.98]
[1734960086335,0.7746,3341.5,3340.8,8.98]
[1734960086563,0.7746,3341.6,3340.8,8.98]
[1734960086874,2.9932,3340.9,3340.8,8.98]
[1734960087075,0.7746,3341.0,3340.8,8.98]
[1734960087381,0.1602111,3340.9,3340.8,8.98]
[1734960087958,0.1602111,3340.9,3340.8,9.878]
[1734960088359,0.1602111,3340.9,3340.8,0.898]
[1734960088560,0.1602111,3340.9,3340.4,2.99361]
[1734960088977,0.1602111,3340.9,3340.5,0.05596598]
[1734960089128,0.7524,3340.8,3340.5,0.05596598]
[1734960089328,0.9126111,3340.8,3340.3,8.98]
[1734960089567,0.9126111,3340.8,3340.6,0.05599786]
[1734960089745,0.9126111,3340.8,3340.3,11.97374]
[1734960090097,0.1602111,3340.7,3340.5,2.99355]
[1734960090387,0.1602111,3340.7,3340.6,3.76917]
[1734960090676,2.65949155,3341.4,3340.6,3.76917]
[1734960090862,2.65949155,3341.4,3340.7,2.99335]
[1734960091061,0.7921,3341.4,3340.7,2.99335]
[1734960091258,0.7921,3341.4,3340.8,0.376905]
[1734960091649,0.16019517,3341.3,3340.8,0.376905]
[1734960091846,0.16019517,3341.3,3340.6,3.76916]
[1734960092143,0.16019517,3341.2,3340.6,3.76916]
[1734960093182,0.16019517,3341.1,3340.6,3.76916]
[1734960093388,0.16019517,3341.1,3340.6,0.7757]
[1734960093531,0.16019517,3341.1,3340.4,4.3191687]
[1734960093732,0.16019517,3341.1,3340.5,1.41127687]
[1734960094192,0.16019517,3341.0,3340.5,1.41127687]
[1734960094884,0.16019517,3341.3,3340.8,2.99328]
[1734960095390,0.16019517,3341.2,3340.8,2.99328]
[1734960095534,0.16019517,3341.2,3340.9,0.299328]
[1734960095935,0.16019517,3341.1,3340.9,0.299328]
[1734960096686,0.16019517,3341.3,3340.9,0.299328]
[1734960097186,0.16019517,3341.2,3340.9,0.299328]
[1734960097340,0.16019517,3341.2,3340.9,3.292518]
[1734960097540,0.16019517,3341.2,3341.0,0.3292518]
[1734960097735,0.16019517,3341.1,3341.0,0.3292518]
[1734960098051,0.16019517,3341.1,3341.0,3.3223618]
[1734960098840,5.17e-06,3341.1,3341.0,4.0911618]
[1734960099140,1.86739155,3341.6,3341.5,2.99266]
[1734960099337,1.86739155,3341.6,3341.1,8.98]
[1734960099550,1.86739155,3341.6,3341.1,11.97294]
[1734960099882,0.7664,3341.8,3341.1,8.98]
[1734960101283,0.7664,3341.8,3341.1,11.97301]
[1734960101783,0.7664,3341.8,3341.1,8.98]
[1734960101982,0.7664,3341.8,3341.2,1.00789518]
[1734960102540,0.7664,3341.8,3341.2,4.00080518]
[1734960103178,1.86739155,3342.1,3341.3,0.7557]
[1734960103477,1.86739155,3342.1,3341.5,2.18533958]
[1734960103661,1.86739155,3342.1,3341.8,2.99232]
[1734960103979,1.86739155,3342.1,3341.9,0.35497817]
[1734960104185,1.86739155,3342.3,3341.9,1.12487817]
[1734960104487,1.86739155,3342.3,3341.9,0.05574617]
[1734960105092,0.7526,3342.4,3342.0,0.05572871]
[1734960105288,0.7526,3342.4,3341.8,2.99239]
[1734960105490,0.7526,3342.4,3342.1,0.05571126]
[1734960105646,0.7526,3342.4,3341.8,2.99239]
[1734960105847,0.7526,3342.4,3341.9,1.25298517]
[1734960106045,0.7526,3342.4,3341.9,4.24525517]
[1734960106249,2.66059155,3342.7,3342.0,2.99221]
[1734960106590,2.66059155,3342.7,3342.1,0.05571126]
[1734960106887,0.7932,3342.7,3342.1,0.05571126]
[1734960107186,0.7932,3342.7,3342.1,0.48022729]
[1734960108491,0.7932,3342.7,3342.1,0.05571126]
[1734960108693,0.7932,3342.7,3341.9,1.197239]
[1734960108867,0.7932,3342.7,3342.2,0.0556938]
[1734960109059,0.7932,3342.7,3341.9,1.197239]
[1734960109257,3.78479,3342.7,3342.0,0.05572871]
[1734960109457,2.99179,3342.5,3342.0,0.05572871]
[1734960109707,3.370179,3342.6,3342.0,0.05572871]
[1734960109850,3.370179,3342.6,3342.1,0.05418829]
[1734960110057,3.370179,3342.6,3341.6,3.02246247]
[1734960110406,0.7932,3342.7,3341.9,2.99222]
[1734960110555,0.7932,3342.7,3342.0,0.7602]
[1734960110754,0.7932,3342.7,3342.0,0.81440574]
[1734960111203,0.16022555,3342.6,3342.0,0.81440574]
[1734960111500,0.16022555,3342.6,3342.0,0.05420574]
[1734960111697,0.16022555,3342.6,3341.3,8.98]
[1734960111698,0.785,3342.3,3341.3,9.7402]
[1734960111867,2.99211,3342.2,3342.1,0.05412049]
[1734960112193,2.99219,3342.1,3341.3,8.98]
[1734960112403,2.99231,3341.9,3341.3,8.98]
[1734960112605,2.99257,3341.6,3341.4,0.05250121]
[1734960112965,2.99242,3341.8,3340.8,0.7602]
[1734960113159,0.16022555,3341.5,3340.9,0.375355]
[1734960113471,0.16022555,3341.5,3340.9,0.42642806]
[1734960114113,2.99242,3341.8,3340.9,0.42642806]
[1734960114606,0.15858184,3341.7,3340.9,0.42642806]
[1734960115310,0.15858184,3341.6,3340.9,0.42642806]
[1734960115469,0.15858184,3341.6,3341.0,0.4764983]
[1734960115664,0.15858184,3341.6,3341.1,0.05124774]
[1734960115864,0.15858184,3341.5,3341.1,0.05124774]
[1734960116666,3.77725,3342.0,3341.1,0.05124774]
[1734960116862,0.785,3342.0,3341.1,3.04422774]
[1734960117107,0.785,3342.0,3341.2,0.3520726]
[1734960117408,0.15859701,3341.9,3341.2,0.40330288]
[1734960117993,0.15859701,3341.8,3341.2,0.40330288]
[1734960118705,0.15859701,3341.9,3341.2,0.40330288]
[1734960118868,0.15859701,3341.7,3341.2,0.40330288]
[1734960119062,0.15859701,3341.7,3341.3,0.33962829]
[1734960119304,0.15859701,3341.7,3341.4,0.05119535]
[1734960119500,0.15859701,3341.9,3341.2,2.99293]
[1734960119715,0.15859701,3341.9,3341.3,0.8269]
[1734960119900,0.15859701,3341.9,3341.3,3.87092281]
[1734960120209,0.15859701,3341.9,3341.3,0.87811281]
[1734960120417,0.15859701,3341.9,3341.5,2.99258]
[1734960120763,0.15859701,3342.2,3341.6,0.05151796]
[1734960120968,3.78858,3341.7,3341.6,0.05151796]
[1734960121197,3.78858,3341.7,3340.0,2.49679815]
[1734960121400,0.7961,3340.5,3340.3,2.49679815]
[1734960121781,3.78966,3340.5,3340.4,0.04130284]
[1734960122371,4.168626,3340.5,3340.4,0.04130284]
[1734960122798,2.99387,3340.2,3339.1,0.8031]
[1734960123119,2.99387,3340.2,3339.2,0.04011187]
[1734960123327,0.7578,3340.4,3339.2,0.04011187]
[1734960123641,0.7578,3340.4,3339.3,2.99462]
[1734960123822,0.7578,3340.4,3339.4,0.60231715]
[1734960124202,0.7578,3340.4,3339.5,0.04005941]
[1734960124823,3.75147,3340.4,3339.5,0.04005941]
[1734960125220,3.75147,3340.4,3339.4,0.60231715]
[1734960125429,3.75147,3340.4,3339.4,3.59684715]
[1734960125631,3.75147,3340.4,3339.5,0.35968472]
[1734960125943,3.75147,3340.4,3339.5,0.04005941]
[1734960127552,3.75147,3340.4,3339.6,0.7731]
[1734960127756,3.75147,3340.4,3339.6,0.81314193]
[1734960129719,0.7578,3340.4,3339.6,0.81314193]
[1734960130764,0.7715,3340.8,3339.6,0.81314193]
[1734960131039,0.26388915,3340.7,3339.6,4.84701784]
[1734960131576,3.25730915,3340.7,3339.6,4.84701784]
[1734960134278,0.26388915,3340.7,3339.6,1.85268784]
[1734960134572,4.05273113,3341.2,3340.5,0.824]
[1734960134573,1.86739155,3341.2,3340.5,0.824]
[1734960134771,1.86739155,3341.2,3340.5,0.85393196]
[1734960134932,1.86739155,3341.2,3340.6,0.04068681]
[1734960135557,2.99249,3341.7,3340.6,3.03413681]
[1734960135797,0.8172,3341.8,3340.8,3.78134]
[1734960136155,3.80962,3341.8,3340.9,0.0406344]
[1734960136651,2.66049155,3342.1,3341.0,0.7962]
[1734960136855,2.99222,3342.0,3341.0,3.7893]
[1734960137055,2.99222,3342.0,3341.1,0.04059947]
[1734960137297,2.99222,3342.0,3341.1,1.32158942]
[1734960139702,0.7931,3342.1,3341.1,1.32158942]
[1734960140874,2.99225,3342.0,3341.1,1.32158942]
[1734960141516,0.7931,3342.1,3341.1,1.32158942]
[1734960141999,2.18533958,3342.2,3341.1,0.04059947]
[1734960142154,0.8182,3341.5,3341.1,0.04059947]
[1734960142501,2.99276,3341.4,3340.8,0.7823]
[1734960142812,2.99276,3341.4,3341.2,0.040582]
[1734960143000,0.8182,3341.5,3340.2,0.7823]
[1734960143198,2.99304,3341.1,3340.2,0.7823]
[1734960143493,0.8182,3341.0,3340.3,0.04073922]
[1734960144386,2.99332,3340.8,3340.3,0.04073922]
[1734960145516,2.99332,3340.8,3339.9,0.7735]
[1734960145702,2.99332,3340.8,3340.4,0.0388938]
[1734960146015,2.99332,3340.8,3339.9,0.7735]
[1734960146216,2.99332,3340.8,3340.5,0.03887633]
[1734960146370,2.99332,3340.8,3339.9,0.7735]
[1734960146571,2.99332,3340.8,3340.6,0.03885886]
[1734960146779,2.99332,3340.8,3339.9,0.7735]
[1734960147017,2.99332,3340.8,3340.7,0.03884139]
[1734960147222,3.374472,3340.8,3339.9,0.7735]
[1734960147516,2.99332,3340.8,3340.0,0.0389637]
[1734960149217,0.8182,3341.0,3340.0,0.0389637]
[1734960149423,0.8182,3341.0,3340.2,2.99374]
[1734960149717,5.64977155,3341.4,3340.3,2.99365]
[1734960149919,6.77600232,3341.4,3340.3,3.63030062]
[1734960150217,4.90861077,3341.4,3340.3,3.63030062]
[1734960150878,1.91583077,3341.4,3340.6,2.99343]
[1734960151078,0.7896,3341.4,3340.7,0.7516]
[1734960151335,3.78238,3341.4,3340.7,0.7911254]
[1734960151982,2.99259,3341.6,3340.7,0.7911254]
[1734960152377,2.99283,3341.4,3340.7,0.7911254]
[1734960152918,0.7916,3341.7,3340.7,0.7911254]
[1734960153088,0.62605996,3341.6,3340.7,0.0395254]
[1734960153287,0.7632,3341.4,3340.7,0.0395254]
[1734960153616,0.7632,3341.4,3340.8,0.03950793]
[1734960153617,2.99318,3341.0,3340.8,0.03950793]
[1734960153912,2.99318,3341.0,3340.4,8.98]
[1734960154141,2.99318,3341.0,3340.9,0.03949047]
[1734960154351,3.292498,3341.0,3340.4,8.98]
[1734960154652,1.062518,3341.0,3340.1,0.8257]
[1734960154937,0.7632,3341.0,3340.2,0.03979146]
[1734960155298,2.99355,3340.6,3340.2,0.03979146]
[1734960155500,2.99355,3340.6,3339.8,0.794]
[1734960155704,2.99331,3340.8,3339.9,0.03976992]
[1734960159944,2.99342,3340.7,3339.9,0.03976992]
[1734960160147,0.375662,3340.7,3339.9,0.03976992]
[1734960160345,0.7632,3341.0,3339.9,0.03976992]
[1734960160661,2.9932,3340.9,3339.9,0.03976992]
[1734960160816,3.74952,3340.1,3339.9,0.03976992]
[1734960161021,0.7556,3340.1,3339.4,0.7726]
[1734960161407,0.7556,3340.1,3339.5,0.03878179]
[1734960161643,1.130543,3340.1,3339.5,0.03878179]
[1734960161819,2.99437,3339.6,3339.5,0.03878179]
[1734960162020,0.8225,3340.0,3338.9,0.7879]
[1734960162351,4.86093155,3340.6,3339.2,2.99464]
[1734960162352,2.99375,3340.3,3339.2,2.99464]
[1734960162521,0.8225,3340.4,3339.4,2.99454]
[1734960162723,2.99367,3340.4,3339.5,0.7819]
[1734960162913,2.99367,3340.4,3339.5,0.82068179]
[1734960163107,1.86739155,3340.2,3339.5,0.03878179]
[1734960163313,1.86739155,3340.2,3339.6,3.75238]
[1734960163625,1.86739155,3340.2,3339.7,0.03874683]
[1734960164034,1.86739155,3340.6,3339.7,0.03874683]
[1734960164250,2.99367,3340.4,3339.7,0.03874683]
[1734960164622,2.99383,3340.3,3339.7,0.03874683]
[1734960164935,0.7703,3340.4,3339.7,0.03874683]
[1734960165116,0.7703,3340.4,3339.2,9.7993]
[1734960165117,3.76449,3339.8,3339.2,0.8193]
[1734960165447,2.99439,3339.6,3339.3,0.03881676]
[1734960165604,2.99454,3339.4,3339.3,0.03881676]
[1734960165811,2.99454,3339.4,3338.5,0.8193]
[1734960166012,2.99454,3339.4,3339.3,0.03881676]
[1734960166227,2.99454,3339.4,3338.5,0.8193]
[1734960166228,3.293994,3339.4,3338.5,0.8193]
[1734960166453,0.299454,3339.4,3338.5,0.8193]
[1734960166620,2.99499,3339.0,3338.6,0.03893917]
[1734960167010,2.99499,3339.0,3338.2,0.781]
[1734960167214,2.99499,3339.0,3338.7,0.03892168]
[1734960167454,0.7999,3339.3,3338.2,0.781]
[1734960167455,2.99508,3338.9,3338.2,0.781]
[1734960167813,2.99508,3338.9,3338.3,0.03899165]
[1734960169061,2.99527,3338.6,3338.3,0.03899165]
[1734960169274,2.99544,3338.4,3338.3,0.03899165]
[1734960169423,2.99517,3338.7,3337.3,2.99642]
[1734960169623,2.99552,3338.4,3338.3,0.04007034]
[1734960169970,3.295072,3338.4,3337.4,0.8236]
[1734960170168,2.99552,3338.4,3337.4,0.8236]
[1734960170464,2.99552,3338.4,3337.5,0.04021033]
[1734960170666,0.8179,3338.3,3337.5,0.04021033]
[1734960171722,0.8179,3338.3,3337.5,3.03644033]
[1734960172150,0.8179,3338.3,3337.5,0.04021033]
[1734960172358,1.199235,3338.3,3337.5,0.04021033]
[1734960174570,2.99563,3338.2,3337.5,0.04021033]
[1734960175352,1.199235,3338.3,3337.5,0.04021033]
[1734960175542,2.99571,3338.1,3337.5,0.04021033]
[1734960175740,1.199235,3338.3,3337.5,0.04021033]
[1734960176476,3.81344,3338.3,3337.5,0.04021033]
[1734960177371,0.8179,3338.3,3337.5,0.04021033]
[1734960179030,3.81344,3338.3,3337.5,0.04021033]
[1734960179474,0.8179,3338.3,3337.5,0.04021033]
[1734960182139,2.99527,3338.6,3337.6,2.99615]
[1734960182338,3.82287,3338.6,3337.6,3.03782246]
[1734960182979,2.99537,3338.5,3337.6,0.04167246]
[1734960183183,2.99575,3338.1,3337.4,0.8236]
[1734960183341,3.82353,3337.9,3337.7,0.03969863]
[1734960183685,0.382353,3337.9,3337.4,0.8236]
[1734960183986,2.99575,3338.1,3337.4,0.8236]
[1734960184135,2.99575,3338.1,3337.5,0.03883521]
[1734960184683,2.99616,3337.6,3337.5,0.03883521]
[1734960185040,0.8198,3337.7,3337.0,0.7886]
[1734960185462,0.8198,3337.7,3337.1,0.03900396]
[1734960185670,1.20138,3337.7,3337.1,0.03900396]
[1734960185974,3.81561,3338.0,3337.1,0.03900396]
[1734960186175,2.99591,3337.9,3337.1,0.03900396]
[1734960186388,0.8198,3338.0,3337.1,0.03900396]
[1734960186539,3.81562,3338.0,3337.1,0.03900396]
[1734960186739,2.99627,3337.5,3337.1,0.03900396]
[1734960186988,1.053527,3337.4,3336.7,0.8225]
[1734960187151,1.053527,3337.4,3337.2,0.03919627]
[1734960187491,0.7539,3337.7,3337.0,2.99669]
[1734960187636,2.99582,3338.0,3337.0,2.99669]
[1734960187637,3.82782,3338.0,3337.0,2.99669]
[1734960187833,0.832,3338.0,3337.1,0.03921377]
[1734960188084,0.832,3338.0,3336.9,0.7889]
[1734960188284,0.832,3338.0,3337.2,0.03919627]
[1734960188439,0.832,3338.0,3337.1,2.99661]
[1734960188644,0.832,3338.0,3337.3,0.03917876]
[1734960188860,0.832,3338.0,3337.2,0.03919627]
[1734960189044,3.82781,3338.0,3337.4,0.03916126]
[1734960189244,0.382781,3337.9,3337.3,0.03917876]
[1734960189561,0.382781,3337.9,3337.4,0.03916126]
[1734960189889,0.832,3338.0,3336.9,0.7889]
[1734960190085,0.832,3338.0,3337.5,0.03914375]
[1734960190251,0.832,3338.0,3336.9,0.7889]
[1734960190439,2.99611,3337.7,3336.9,0.7889]
[1734960190638,2.99611,3337.7,3337.0,0.03923128]
[1734960190888,0.382811,3337.7,3337.0,0.03923128]
[1734960191057,0.7847,3337.4,3337.0,0.03923128]
[1734960191455,0.7847,3337.4,3336.6,0.7926]
[1734960191674,0.7847,3337.4,3337.1,0.03973214]
[1734960191877,3.78105,3337.4,3336.6,0.7926]
[1734960192186,2.99643,3337.3,3336.6,0.7926]
[1734960192499,0.378113,3337.3,3336.7,0.03980218]
[1734960192686,3.374573,3337.3,3336.7,0.03980218]
[1734960192883,0.378113,3337.3,3336.7,0.03980218]
[1734960193081,2.99654,3337.2,3336.7,0.03980218]
[1734960193459,0.7847,3337.4,3336.3,0.7926]
[1734960193990,0.7947,3338.0,3336.8,0.7696]
[1734960194170,2.996,3337.8,3336.8,0.7696]
[1734960194372,2.996,3337.8,3336.9,0.03976716]
[1734960194575,0.37907,3337.7,3336.9,0.03976716]
[1734960194790,3.37514,3337.7,3336.9,0.03976716]
[1734960195205,2.9963,3337.5,3336.9,0.03976716]
[1734960195362,0.7947,3337.6,3336.8,0.7696]
[1734960195559,0.7947,3337.6,3337.0,0.03974965]
[1734960195792,2.99625,3337.5,3336.9,0.03976716]
[1734960195988,2.99625,3337.5,3336.8,0.7696]
[1734960195989,0.379095,3337.4,3336.5,0.7696]
[1734960196202,0.379095,3337.4,3337.0,0.03974965]
[1734960196368,0.379095,3337.4,3336.5,0.7696]
[1734960196570,0.379095,3337.4,3337.1,0.03973214]
[1734960196776,0.379095,3337.4,3336.5,0.7696]
[1734960196972,2.99635,3337.4,3336.6,0.29549396]
[1734960197307,2.99633,3337.5,3336.6,0.03981969]
[1734960199078,0.7947,3337.6,3336.6,0.03981969]
[1734960199300,0.7947,3337.6,3336.6,3.03685969]
[1734960199538,2.99633,3337.5,3336.6,0.03981969]
[1734960201096,2.99636,3337.4,3336.6,0.03981969]
[1734960201441,3.79089,3337.6,3336.6,0.03981969]
[1734960201614,4.52905247,3337.6,3336.6,0.03981969]
[1734960201821,3.79747,3337.9,3336.7,0.8251]
[1734960202035,3.79747,3337.9,3336.9,0.8251]
[1734960202388,2.99603,3337.8,3337.0,0.03974965]
[1734960204536,1.86739155,3338.4,3337.0,0.03974965]
[1734960204742,2.99578,3338.1,3337.1,0.8251]
[1734960205035,1.86739155,3338.3,3337.3,2.99643]
[1734960205187,1.86739155,3338.3,3337.7,2.99605]
[1734960205624,2.48985541,3338.5,3337.8,0.03985655]
[1734960205625,1.86739155,3338.4,3337.8,0.03985655]
[1734960206425,0.7569,3338.6,3337.8,0.03985655]
[1734960206586,3.75217,3338.6,3337.8,0.03985655]
[1734960206786,4.40306255,3338.6,3337.5,0.7617]